bitfinex-derivatives/quotes_ETHF0:USTF0_20250518
["timestamp","ask_amount","ask_price","bid_price","bid_amount"]
[1747567268345,2.6586557,2511.0,2510.5,1.40403511]
[1747567268541,3.3386557,2511.0,2510.6,0.12443511]
[1747567268740,3.3386557,2511.0,2510.7,1.40403511]
[1747567268940,3.3386557,2511.0,2510.8,15.44943511]
[1747567269140,1.3663,2510.9,2510.8,15.325]
[1747567269342,1.3663,2510.9,2510.8,15.44942245]
[1747567270153,4.4243,2510.9,2510.8,15.44942245]
[1747567270841,3.058,2510.9,2510.8,15.44942245]
[1747567271040,1.15259858,2511.7,2510.8,52.23775319]
[1747567271244,1.17268024,2511.8,2511.4,3.2078]
[1747567271445,1.17268024,2511.8,2511.7,3.2078]
[1747567271746,1.17268024,2511.8,2511.7,3.33217894]
[1747567272548,1.17268024,2511.8,2511.7,18.72317894]
[1747567272850,3.09058024,2511.8,2511.7,18.72317894]
[1747567273147,3.76878024,2511.8,2511.7,18.72317894]
[1747567273352,3.76878024,2511.8,2511.7,18.72317594]
[1747567274344,2.5961,2511.8,2511.7,18.72317594]
[1747567275343,1.64657326,2511.9,2511.7,18.72317594]
[1747567275647,2.5858,2512.4,2511.8,1.45157594]
[1747567275838,2.5858,2512.4,2512.0,3.2078]
[1747567276038,2.5858,2512.4,2512.1,15.51537594]
[1747567276241,2.5858,2512.4,2512.2,0.12437594]
[1747567276448,2.5858,2512.4,2512.3,0.12437594]
[1747567277249,3.15978607,2513.3,2512.3,36.38460653]
[1747567277448,3.15978607,2513.3,2513.2,3.2078]
[1747567277645,4.53038607,2513.3,2513.2,0.12436618]
[1747567277849,12.73818607,2513.3,2513.2,0.12436618]
[1747567278043,12.73818607,2513.3,2512.3,27.05244035]
[1747567278346,3.2078,2513.0,2512.3,8.019]
[1747567278643,1.3706,2512.9,2512.7,1.18103074]
[1747567279140,9.4286,2512.9,2512.7,1.18103074]
[1747567280250,9.4286,2512.9,2512.7,0.14713074]
[1747567281557,9.4286,2512.9,2512.4,8.014]
[1747567281765,4.4286,2512.9,2512.4,8.014]
[1747567283667,0.6713,2512.8,2512.4,8.014]
[1747567283868,1.2796,2512.7,2512.4,8.014]
[1747567284162,4.3376,2512.7,2512.4,8.014]
[1747567284362,0.6354,2512.6,2512.2,0.30176683]
[1747567284564,4.4874,2512.5,2512.2,7.995]
[1747567284968,1.2796,2512.5,2512.2,7.995]
[1747567285153,4.3376,2512.5,2512.2,7.995]
[1747567286766,4.3376,2512.5,2512.2,8.6226]
[1747567287262,4.3376,2512.5,2512.3,1.3744]
[1747567288460,3.058,2512.5,2512.3,1.3744]
[1747567288666,3.058,2512.5,2512.4,3.2078]
[1747567290066,3.058,2512.5,2512.4,3.33214941]
[1747567290266,3.058,2512.5,2512.4,0.12434941]
[1747567290468,3.058,2512.5,2512.4,3.33215455]
[1747567292369,3.058,2512.5,2512.4,3.33214839]
[1747567294875,3.058,2512.5,2512.4,10.98814839]
[1747567295673,3.15018003,2512.5,2512.4,10.98814839]
[1747567296272,3.15018003,2512.5,2512.4,10.98814939]
[1747567296969,4.42808003,2512.5,2512.4,10.98814939]
[1747567297159,4.42808003,2512.5,2512.4,18.94614939]
[1747567298263,4.42808003,2512.5,2512.4,18.94614958]
[1747567300873,4.42808003,2512.5,2512.4,20.01348602]
[1747567302177,4.42808003,2512.5,2512.4,21.25558602]
[1747567302378,4.42808003,2512.5,2512.4,25.44224847]
[1747567303177,4.42808003,2512.5,2512.4,25.41924847]
[1747567305679,4.42808003,2512.5,2512.4,5.37834847]
[1747567305866,9.42808003,2512.5,2512.4,1.19170154]
[1747567306478,9.42808003,2512.5,2512.4,0.1243651]
[1747567307179,9.42808003,2512.5,2512.1,12.71050765]
[1747567307180,9.42808003,2512.5,2512.1,12.70850765]
[1747567307478,1.3264,2512.4,2512.1,12.70850765]
[1747567307678,0.6526,2512.3,2512.1,12.70850765]
[1747567307880,1.3264,2512.2,2512.1,12.70850765]
[1747567308474,1.3264,2512.2,2512.1,1.06944976]
[1747567309175,4.3844,2512.2,2512.1,1.06944976]
[1747567309783,9.3844,2512.2,2511.8,12.69950765]
[1747567309974,2.007,2512.1,2511.8,12.69950765]
[1747567310278,1.3468,2512.0,2511.8,12.69950765]
[1747567311079,4.4048,2512.0,2511.8,12.69950765]
[1747567311284,1.2455,2511.9,2511.8,12.69950765]
[1747567311982,1.2455,2511.9,2511.8,17.06578904]
[1747567312179,0.00898605,2512.1,2511.9,1.06903642]
[1747567312383,1.34511522,2512.5,2512.0,10.5757]
[1747567312581,1.34511522,2512.5,2512.3,3.2078]
[1747567312782,1.34511522,2512.5,2512.4,9.2934]
[1747567312982,1.34511522,2512.5,2512.4,13.59064373]
[1747567313687,1.34511522,2512.5,2512.4,14.65968015]
[1747567314381,4.40311522,2512.5,2512.4,14.65968015]
[1747567315187,1.34511522,2512.5,2512.4,14.65968015]
[1747567315383,1.34511522,2512.5,2512.4,14.64868015]
[1747567315583,1.3721,2512.6,2512.4,6.72368015]
[1747567316285,4.4301,2512.6,2512.4,6.72368015]
[1747567316785,1.3721,2512.5,2512.4,6.72368015]
[1747567319286,4.4301,2512.5,2512.4,6.84803669]
[1747567320487,4.4301,2512.5,2512.4,5.49063669]
[1747567320690,4.4301,2512.5,2512.4,1.19339296]
[1747567320989,4.4301,2512.5,2512.4,1.19340579]
[1747567321885,4.4301,2512.5,2512.4,0.12436937]
[1747567322289,4.4301,2512.5,2512.4,0.12436984]
[1747567324094,4.52228003,2512.5,2512.4,0.12437047]
[1747567325487,9.52228003,2512.5,2511.8,3.2078]
[1747567325694,1.9613,2512.4,2511.8,3.2078]
[1747567325896,1.2763,2512.3,2512.0,4.27722056]
[1747567326094,1.2763,2512.3,2512.1,0.669]
[1747567326495,1.2763,2512.3,2512.2,5.67805371]
[1747567327298,4.3343,2512.3,2512.2,5.67805371]
[1747567328197,4.3343,2512.3,2512.2,4.40945371]
[1747567328399,4.3343,2512.3,2511.9,0.6868]
[1747567328697,2.0306,2512.2,2512.0,8.001]
[1747567328892,1.3504,2512.1,2512.0,8.001]
[1747567329092,1.3504,2512.1,2511.9,4.32862774]
[1747567329294,0.6254,2512.0,2511.8,11.2118]
[1747567329497,1.3644,2511.9,2511.8,11.2118]
[1747567330094,1.3644,2511.9,2511.8,3.2078]
[1747567330399,4.4224,2511.9,2511.7,1.57470765]
[1747567330902,1.3644,2511.8,2511.6,0.6658]
[1747567331097,1.3644,2511.8,2511.5,15.937]
[1747567331098,1.3644,2511.8,2511.5,9.185]
[1747567331298,1.3644,2511.8,2511.5,17.182]
[1747567331501,0.6442,2511.7,2511.5,17.182]
[1747567331699,1.3644,2511.6,2511.5,15.937]
[1747567331902,1.3644,2511.6,2511.5,7.997]
[1747567332094,4.4224,2511.6,2511.5,7.997]
[1747567332600,4.4224,2511.6,2511.5,9.06753018]
[1747567332802,4.4224,2511.6,2511.5,1.07053018]
[1747567332991,4.4224,2511.6,2511.5,2.39423018]
[1747567333913,3.058,2511.6,2511.5,2.39423018]
[1747567334404,3.058,2511.6,2511.5,3.06573018]
[1747567335106,2.89322716,2512.3,2511.5,15.28981717]
[1747567335295,2.89322716,2512.3,2512.2,3.2078]
[1747567335495,2.89322716,2512.3,2512.2,20.51433018]
[1747567335697,2.89322716,2512.3,2512.2,24.66698647]
[1747567336206,5.95122716,2512.3,2512.2,24.66698647]
[1747567336701,5.95122716,2512.3,2512.2,5.22318647]
[1747567336902,5.95122716,2512.3,2512.2,21.44918647]
[1747567337407,4.05430243,2512.3,2512.2,21.57354445]
[1747567338007,3.058,2512.3,2512.2,21.57354445]
[1747567338314,4.42598003,2512.5,2512.2,21.56354445]
[1747567338509,4.42598003,2512.5,2512.3,17.40888816]
[1747567338808,0.6247,2512.4,2512.3,17.28453018]
[1747567338999,1.9232,2512.4,2512.3,17.41289606]
[1747567339202,4.9812,2512.4,2512.3,9.42189606]
[1747567339709,4.9812,2512.4,2512.3,1.19489606]
[1747567339904,4.9812,2512.4,2512.3,8.34736588]
[1747567340707,4.9812,2512.4,2512.3,0.12436588]
[1747567340906,4.9812,2512.4,2512.3,8.34436588]
[1747567341098,4.9812,2512.4,2512.3,8.34436537]
[1747567342503,4.9812,2512.4,2512.3,8.33336537]
[1747567343100,4.9812,2512.4,2512.3,8.33336966]
[1747567344703,4.9812,2512.4,2512.3,8.33336388]
[1747567344905,4.9812,2512.4,2512.3,8.33336448]
[1747567345901,4.9812,2512.4,2512.3,0.12436448]
[1747567346108,4.9812,2512.4,2512.3,8.31136448]
[1747567346902,4.9812,2512.4,2512.3,8.31136763]
[1747567347407,4.9812,2512.4,2512.3,0.12436763]
[1747567347609,4.9812,2512.4,2512.3,8.30136763]
[1747567348808,4.9812,2512.4,2512.3,8.30136495]
[1747567351112,4.9812,2512.4,2512.3,9.55926495]
[1747567354114,4.9812,2512.4,2512.3,1.38226495]
[1747567354317,3.6827,2512.4,2512.3,9.51726495]
[1747567354612,3.15018003,2512.4,2512.3,9.51725893]
[1747567354813,3.15018003,2512.4,2512.3,10.19605893]
[1747567356215,3.15018003,2512.4,2512.3,10.19606171]
[1747567356417,3.15018003,2512.4,2512.3,10.19606172]
[1747567358315,3.15018003,2512.4,2512.3,10.0717]
[1747567358514,3.15018003,2512.4,2512.3,10.19606171]
[1747567360321,3.15018003,2512.4,2512.3,10.19606163]
[1747567360812,3.15018003,2512.4,2512.3,11.26830763]
[1747567362220,3.15018003,2512.4,2512.3,11.26830736]
[1747567362418,3.15018003,2512.4,2512.3,10.58950736]
[1747567364122,3.15018003,2512.4,2512.3,10.58950734]
[1747567367114,0.09218003,2512.4,2512.3,14.88121407]
[1747567367315,0.09218003,2512.4,2512.3,15.20281407]
[1747567368320,3.15018003,2512.4,2512.3,15.20281407]
[1747567369917,3.15018003,2512.4,2512.3,15.20280289]
[1747567370423,3.15018003,2512.4,2512.3,14.88120289]
[1747567370624,3.15018003,2512.4,2512.3,16.45591054]
[1747567370825,3.15018003,2512.4,2512.3,24.45591054]
[1747567372030,3.15018003,2512.4,2512.3,24.45091054]
[1747567372919,3.15018003,2512.4,2512.3,23.18801054]
[1747567373320,3.15018003,2512.4,2512.3,24.43901054]
[1747567373629,3.15018003,2512.4,2512.3,24.43901507]
[1747567374220,3.15018003,2512.4,2512.3,23.18001507]
[1747567374624,3.15018003,2512.4,2512.3,22.78703771]
[1747567374931,3.15018003,2512.4,2512.3,2.37833098]
[1747567375630,3.15018003,2512.4,2512.3,2.37834944]
[1747567375934,8.15018003,2512.4,2512.3,1.30610344]
[1747567376135,11.35798003,2512.4,2512.3,0.14813029]
[1747567376335,11.35798003,2512.4,2512.3,0.2725154]
[1747567377239,12.68968003,2512.4,2512.3,0.2725154]
[1747567377439,12.68968003,2512.4,2512.3,0.1243885]
[1747567377942,12.68968003,2512.4,2512.3,0.12439059]
[1747567378638,9.48188003,2512.4,2512.3,0.12439059]
[1747567378838,12.68968003,2512.4,2512.3,0.12439059]
[1747567379537,13.68598246,2512.4,2512.3,0.12439059]
[1747567379737,13.68598246,2512.4,2512.3,0.12438799]
[1747567380640,16.06783588,2512.4,2512.3,0.12438799]
[1747567381241,16.06783588,2512.4,2512.3,0.12438664]
[1747567382839,16.06783588,2512.4,2512.3,0.12438814]
[1747567384647,11.06783588,2512.4,2512.3,0.12438814]
[1747567384848,7.86003588,2512.4,2512.3,0.12438471]
[1747567386145,7.76785585,2512.4,2512.3,0.12438471]
[1747567386647,7.76785585,2512.4,2512.3,0.12438119]
[1747567387145,4.48188003,2512.4,2512.3,0.12438119]
[1747567387447,3.15018003,2512.4,2512.3,0.12438119]
[1747567387648,3.15018003,2512.4,2512.3,5.86204411]
[1747567387849,3.15018003,2512.4,2512.3,17.58798119]
[1747567388147,4.44948003,2512.4,2512.3,9.50698119]
[1747567388547,4.44948003,2512.4,2512.3,9.50696854]
[1747567389245,9.44948003,2512.4,2512.3,0.12436854]
[1747567389445,9.44948003,2512.4,2511.6,3.2078]
[1747567389642,3.2078,2512.0,2511.6,3.2078]
[1747567389845,2.6119,2511.9,2511.6,3.2078]
[1747567390147,1.2993,2511.8,2511.6,3.2078]
[1747567391250,4.3573,2511.8,2511.6,3.2078]
[1747567391853,1.2666,2511.7,2511.6,3.2078]
[1747567392257,4.3246,2511.7,2511.6,3.2078]
[1747567392553,7.5324,2511.7,2511.1,0.6228]
[1747567392849,1.2666,2511.6,2511.2,4.25530777]
[1747567393154,4.3246,2511.6,2511.0,9.66470765]
[1747567393548,1.3216,2511.5,2511.0,2.91180765]
[1747567393849,3.8845,2511.4,2511.0,10.99780765]
[1747567394146,1.3216,2511.3,2511.0,9.4231]
[1747567395154,4.3796,2511.3,2511.0,9.4231]
[1747567396457,1.3038,2511.2,2511.0,1.3371]
[1747567397155,4.3618,2511.2,2511.0,1.3371]
[1747567398157,1.3038,2511.1,2511.0,1.3371]
[1747567399161,4.3618,2511.1,2511.0,1.3371]
[1747567400863,3.058,2511.1,2511.0,1.3371]
[1747567401462,3.058,2511.1,2511.0,1.461531]
[1747567401866,3.058,2511.1,2511.0,1.46153201]
[1747567402567,4.3375,2511.1,2511.0,1.46153201]
[1747567403765,4.3375,2511.1,2511.0,1.46153219]
[1747567405267,3.058,2511.1,2511.0,1.46153219]
[1747567405468,3.058,2511.1,2511.0,1.46153085]
[1747567407567,3.058,2511.1,2511.0,1.46153128]
[1747567409369,3.058,2511.1,2511.0,1.3371]
[1747567409575,3.058,2511.1,2511.0,1.46153126]
[1747567411365,3.058,2511.1,2511.0,1.46152998]
[1747567413269,3.058,2511.1,2511.0,1.46152987]
[1747567414671,4.4145,2511.1,2511.0,1.46152987]
[1747567415473,4.50668003,2511.1,2511.0,1.46152987]
[1747567416686,4.50668003,2511.1,2511.0,1.46153276]
[1747567417175,4.50668003,2511.1,2511.0,1.46153293]
[1747567420376,3.15018003,2511.1,2511.0,1.46153293]
[1747567420570,3.15018003,2511.1,2511.0,3.2072823]
[1747567420977,3.15018003,2511.1,2511.0,3.20727521]
[1747567422177,3.15018003,2511.1,2511.0,12.66561211]
[1747567422373,3.15018003,2511.1,2511.0,7.66561211]
[1747567422875,3.15018003,2511.1,2511.0,7.66560051]
[1747567423873,3.15018003,2511.1,2511.0,25.29430816]
[1747567424988,3.15018003,2511.1,2511.0,25.29431574]
[1747567425279,3.15018003,2511.1,2511.0,25.16631574]
[1747567425879,3.15018003,2511.1,2511.0,9.24031574]
[1747567426072,3.15018003,2511.1,2511.0,25.17031574]
[1747567426780,4.41638003,2511.1,2511.0,25.1703181]
[1747567426979,4.41638003,2511.1,2511.0,23.59561045]
[1747567427180,4.41638003,2511.1,2511.0,13.61791045]
[1747567427378,4.41638003,2511.1,2511.0,17.11957355]
[1747567428681,4.41638003,2511.1,2511.0,17.11957579]
[1747567429280,4.41638003,2511.1,2511.0,1.19657579]
[1747567429682,4.41638003,2511.1,2511.0,9.14957579]
[1747567430181,4.41638003,2511.1,2511.0,10.47727579]
[1747567430583,4.41638003,2511.1,2511.0,10.47727418]
[1747567432388,3.15018003,2511.1,2511.0,10.47727418]
[1747567432686,3.15018003,2511.1,2511.0,14.89225994]
[1747567434486,3.15018003,2511.1,2511.0,14.892258]
[1747567436387,3.15018003,2511.1,2511.0,14.89225765]
[1747567436701,3.15018003,2511.1,2511.0,16.07591937]
[1747567440201,3.15018003,2511.1,2511.0,16.07591854]
[1747567441501,3.15018003,2511.1,2511.0,16.07591814]
[1747567443299,3.15018003,2511.1,2511.0,16.07591892]
[1747567445395,3.15018003,2511.1,2511.0,16.07591903]
[1747567447204,3.15018003,2511.1,2511.0,16.07591627]
[1747567447899,3.15018003,2511.1,2511.0,14.89225455]
[1747567448100,3.15018003,2511.1,2511.0,19.89225455]
[1747567448407,0.09218003,2511.1,2511.0,19.89225455]
[1747567449204,0.66321453,2511.4,2511.0,19.8922462]
[1747567449401,0.66321453,2511.4,2511.3,3.2078]
[1747567449600,0.66321453,2511.4,2511.3,11.29520697]
[1747567449908,0.66321453,2511.4,2511.3,20.75247769]
[1747567450102,0.66321453,2511.4,2511.3,20.75246682]
[1747567450303,0.66321453,2511.4,2511.3,22.76626682]
[1747567450512,0.66321453,2511.6,2511.3,22.76626682]
[1747567450809,0.66321453,2511.6,2511.4,9.3628961]
[1747567450993,0.66321453,2511.6,2511.5,1.4808961]
[1747567451198,0.66321453,2511.6,2511.5,6.00261005]
[1747567451599,0.66321453,2511.6,2511.5,7.07475942]
[1747567452106,3.72121453,2511.6,2511.5,7.07475942]
[1747567453505,3.72121453,2511.6,2511.5,5.71825942]
[1747567453806,4.39151453,2511.6,2511.5,21.56525942]
[1747567454000,4.39151453,2511.6,2511.5,5.71825942]
[1747567454205,4.39151453,2511.6,2511.5,21.57025942]
[1747567454799,4.39151453,2511.6,2511.5,21.57026211]
[1747567455108,4.39151453,2511.6,2511.5,13.68026211]
[1747567455309,4.39151453,2511.6,2511.5,13.60326211]
[1747567455804,4.39151453,2511.6,2511.5,5.71826211]
[1747567456001,3.7283,2511.6,2511.5,13.60026211]
[1747567456600,3.7283,2511.6,2511.5,5.71826211]
[1747567456805,3.7283,2511.6,2511.5,13.59726685]
[1747567458611,3.7283,2511.6,2511.5,13.59726535]
[1747567460114,3.82048003,2511.6,2511.5,5.71826535]
[1747567460416,3.82048003,2511.6,2511.5,13.58526535]
[1747567460607,3.82048003,2511.6,2511.5,13.58526724]
[1747567461912,3.82048003,2511.6,2511.5,5.71826724]
[1747567462113,3.82048003,2511.6,2511.5,13.57826724]
[1747567462615,3.82048003,2511.6,2511.5,13.57826813]
[1747567463514,3.82048003,2511.6,2511.5,5.71826813]
[1747567463810,3.82048003,2511.6,2511.5,13.57126813]
[1747567464915,3.82048003,2511.6,2511.5,13.56826813]
[1747567466210,3.82048003,2511.6,2511.5,13.44386332]
[1747567466413,3.82048003,2511.6,2511.5,5.71826645]
[1747567466617,7.02828003,2511.6,2511.5,1.1965525]
[1747567468117,7.02828003,2511.6,2511.5,1.07214937]
[1747567468315,12.02828003,2511.6,2511.5,0.12442115]
[1747567468624,12.02828003,2511.6,2511.2,1.18141938]
[1747567468824,1.3299,2511.5,2511.2,1.18141938]
[1747567469214,4.3879,2511.5,2511.2,1.18141938]
[1747567469623,1.3645,2511.4,2511.2,1.18141938]
[1747567470118,4.4225,2511.4,2511.2,1.18141938]
[1747567470621,1.3645,2511.3,2511.0,3.2078]
[1747567470820,0.6585,2511.2,2511.0,3.2078]
[1747567471020,1.3645,2511.1,2511.0,3.2078]
[1747567471614,2.0159,2511.1,2511.0,3.2078]
[1747567472323,5.0739,2511.1,2511.0,5.59738335]
[1747567473122,5.0739,2511.1,2511.0,4.29108335]
[1747567475025,3.058,2511.1,2511.0,5.64578335]
[1747567475523,3.058,2511.1,2511.0,9.92343666]
[1747567476426,3.15018003,2511.1,2511.0,9.92343666]
[1747567483231,0.09218003,2511.1,2511.0,9.92343666]
[1747567484130,3.15018003,2511.1,2511.0,9.92343666]
[1747567485217,3.15018003,2511.1,2511.0,25.56143666]
[1747567485531,3.15018003,2511.1,2511.0,9.92343666]
[1747567485724,3.15018003,2511.1,2511.0,25.56043666]
[1747567486029,3.15018003,2511.1,2511.0,27.1356625]
[1747567487431,3.15018003,2511.1,2511.0,23.9278625]
[1747567487728,3.15018003,2511.1,2511.0,27.1356625]
[1747567488431,3.15018003,2511.1,2511.0,25.56043666]
[1747567489132,3.15018003,2511.1,2511.0,25.55043666]
[1747567490234,3.15018003,2511.1,2511.0,25.54643666]
[1747567491235,3.15018003,2511.1,2511.0,27.1216625]
[1747567491634,3.15018003,2511.1,2511.0,11.4986625]
[1747567492135,3.15018003,2511.1,2511.0,27.1156625]
[1747567492336,3.15018003,2511.1,2511.0,11.4986625]
[1747567492535,3.15018003,2511.1,2511.0,27.1146625]
[1747567492934,3.15018003,2511.1,2511.0,11.4986625]
[1747567493537,3.15018003,2511.1,2511.0,27.1106625]
[1747567494239,3.15018003,2511.1,2511.0,11.4986625]
[1747567494441,3.15018003,2511.1,2511.0,27.1086625]
[1747567494634,3.15018003,2511.1,2511.0,11.4986625]
[1747567494936,3.15018003,2511.1,2511.0,27.1076625]
[1747567496241,0.09218003,2511.1,2511.0,27.1076625]
[1747567497243,3.15018003,2511.1,2511.0,27.1076625]
[1747567497438,3.15018003,2511.1,2511.0,25.53243666]
[1747567499642,3.15018003,2511.1,2511.0,9.92343666]
[1747567499846,3.15018003,2511.1,2511.0,25.52143666]
[1747567502350,3.15018003,2511.1,2511.0,22.31363666]
[1747567502650,3.15018003,2511.1,2511.0,25.52143666]
[1747567504148,2.42371249,2511.1,2511.0,30.52143666]
[1747567504854,2.51589252,2511.1,2511.0,30.52143666]
[1747567505154,0.09218003,2511.1,2511.0,30.52143666]
[1747567507360,0.09218003,2511.1,2511.0,33.66313143]
[1747567507559,0.09218003,2511.1,2511.0,28.66313143]
[1747567507768,0.09218003,2511.1,2511.0,28.66613143]
[1747567507954,0.09218003,2511.1,2511.0,13.07413143]
[1747567508156,0.09218003,2511.1,2511.0,27.31043143]
[1747567509155,3.15018003,2511.1,2511.0,28.63563143]
[1747567509556,3.15018003,2511.1,2511.0,13.04463143]
[1747567509862,3.15018003,2511.1,2511.0,28.63763143]
[1747567510059,3.15018003,2511.1,2511.0,25.48693666]
[1747567510258,0.09218003,2511.1,2511.0,25.48693666]
[1747567512162,3.15018003,2511.1,2511.0,16.38673666]
[1747567512554,3.15018003,2511.1,2511.0,24.16573666]
[1747567513063,4.41268003,2511.1,2511.0,16.38673666]
[1747567513265,4.41268003,2511.1,2511.0,24.16473666]
[1747567513564,4.41268003,2511.1,2511.0,25.74514483]
[1747567515462,4.41268003,2511.1,2511.0,10.14914483]
[1747567515666,4.41268003,2511.1,2511.0,25.69314483]
[1747567516167,4.41268003,2511.1,2511.0,10.14914483]
[1747567516365,4.41268003,2511.1,2511.0,25.69114483]
[1747567516669,4.41268003,2511.1,2511.0,10.14914483]
[1747567516861,4.41268003,2511.1,2511.0,21.41249152]
[1747567517062,4.41268003,2511.1,2511.0,19.83208335]
[1747567519167,4.41268003,2511.1,2511.0,4.29108335]
[1747567519355,4.41268003,2511.1,2511.0,19.83008335]
[1747567520062,4.41268003,2511.1,2511.0,4.29108335]
[1747567520261,4.41268003,2511.1,2511.0,19.82708335]
[1747567520463,4.41268003,2511.1,2511.0,21.01227145]
[1747567521466,4.41268003,2511.1,2511.0,5.47627145]
[1747567521870,4.41268003,2511.1,2511.0,21.00827145]
[1747567522874,4.41268003,2511.1,2511.0,5.47627145]
[1747567533384,4.41268003,2511.1,2511.0,3.2078]
[1747567537277,4.41268003,2511.1,2511.0,4.29191651]
[1747567544475,4.41268003,2511.1,2511.0,3.2078]
[1747567547586,4.41268003,2511.1,2510.7,1.308]
[1747567547793,1.3179,2511.0,2510.9,3.2078]
[1747567548086,1.3179,2511.0,2510.7,1.308]
[1747567548282,0.6669,2510.9,2510.7,1.308]
[1747567548482,1.3179,2510.8,2510.7,1.308]
[1747567548883,1.3179,2510.8,2510.7,4.5158]
[1747567549080,4.3759,2510.8,2510.7,4.5158]
[1747567549281,5.0488,2510.8,2510.7,4.5158]
[1747567549783,5.0488,2510.8,2510.7,5.59977334]
[1747567550988,5.0488,2510.8,2510.7,4.29177334]
[1747567553990,5.0488,2510.8,2510.7,3.2078]
[1747567558895,5.0488,2510.8,2510.4,3.2078]
[1747567559197,1.3698,2510.7,2510.4,3.2078]
[1747567559488,1.3698,2510.7,2510.4,4.5591]
[1747567559993,1.3698,2510.7,2510.5,1.08302076]
[1747567560192,4.4278,2510.7,2510.5,2.43432076]
[1747567561195,3.058,2510.7,2510.5,2.43432076]
[1747567561496,3.058,2510.7,2510.6,1.9577]
[1747567562198,3.058,2510.7,2510.6,3.04072076]
[1747567562398,3.058,2510.7,2510.6,2.39182076]
[1747567562900,3.7323,2510.7,2510.6,2.39182076]
[1747567563400,3.7323,2510.7,2510.6,1.3088]
[1747567563607,4.4042,2510.7,2510.4,3.2078]
[1747567563815,1.2869,2510.6,2510.3,1.1851881]
[1747567564106,10.9648,2510.5,2510.3,1.1851881]
[1747567564291,1.2523,2510.4,2510.3,1.1851881]
[1747567565100,4.3103,2510.4,2510.3,1.1851881]
[1747567565803,4.3103,2510.4,2509.8,1.3094]
[1747567566102,1.9083,2510.3,2509.8,1.3094]
[1747567566301,1.9218,2510.2,2509.8,1.3094]
[1747567566606,1.2523,2510.1,2509.8,1.3094]
[1747567568206,4.3103,2510.1,2509.8,1.3094]
[1747567568398,1.3241,2510.0,2509.8,1.3094]
[1747567569111,4.3821,2510.0,2509.8,1.3094]
[1747567572007,1.9643,2509.9,2509.8,1.3094]
[1747567572206,5.1721,2509.9,2509.5,7.758]
[1747567572407,1.9013,2509.8,2509.4,17.3805881]
[1747567572614,1.2784,2509.7,2509.5,1.3341]
[1747567573107,4.3364,2509.7,2509.5,1.3341]
[1747567573613,1.322,2509.6,2509.5,1.3341]
[1747567573808,1.322,2509.6,2509.4,1.1851881]
[1747567574014,0.6457,2509.5,2509.3,3.2078]
[1747567574314,0.6581,2509.4,2509.1,1.1851881]
[1747567574612,3.2078,2509.3,2509.1,1.1851881]
[1747567574813,3.2078,2509.3,2509.2,1.3655]
[1747567575007,3.2078,2509.3,2509.2,2.0302]
[1747567575309,7.5878,2509.3,2509.2,2.0302]
[1747567576114,4.38,2509.3,2509.2,2.0302]
[1747567576615,3.058,2509.3,2509.2,2.0302]
[1747567576801,3.058,2509.3,2509.2,22.63026856]
[1747567577302,1.2887,2510.1,2509.2,22.63026856]
[1747567577508,4.44848607,2510.1,2509.3,2.0381]
[1747567577710,0.66321453,2509.9,2509.4,1.3782]
[1747567577919,0.66321453,2509.9,2509.4,5.94133326]
[1747567578214,5.00991453,2509.9,2509.4,5.94133326]
[1747567578409,5.00991453,2509.9,2509.5,1.3782]
[1747567578917,5.00991453,2509.9,2509.6,0.6866]
[1747567579113,5.00991453,2509.9,2509.7,1.3782]
[1747567580909,5.10209456,2509.9,2509.7,1.3782]
[1747567581109,1.3795,2509.8,2509.7,1.3782]
[1747567583109,4.4375,2509.8,2509.7,1.3782]
[1747567587014,5.7459,2509.8,2509.4,3.2078]
[1747567587210,1.2821,2509.7,2509.4,1.9195]
[1747567587411,1.2821,2509.7,2509.5,4.56368662]
[1747567588219,4.3401,2509.7,2509.5,5.85878662]
[1747567588823,1.2821,2509.6,2509.5,5.85878662]
[1747567589319,4.3401,2509.6,2509.5,5.85878662]
[1747567592523,4.3401,2509.6,2509.4,0.6244]
[1747567592721,1.3448,2509.5,2509.4,0.6244]
[1747567593121,4.4028,2509.5,2509.4,0.6244]
[1747567594426,4.4028,2509.5,2509.4,1.70951613]
[1747567594921,4.4028,2509.5,2509.4,3.01391613]
[1747567595521,4.4028,2509.5,2509.4,2.38951613]
[1747567595723,4.4028,2509.5,2509.4,1.08511613]
[1747567596118,4.49498003,2509.5,2509.4,1.08511613]
[1747567600437,4.49498003,2509.5,2509.4,2.38011613]
[1747567606032,4.49498003,2509.5,2509.4,1.08511613]
[1747567609033,4.49498003,2509.5,2509.4,2.27030423]
[1747567612537,4.49498003,2509.5,2509.4,1.08511613]
[1747567613534,4.49498003,2509.5,2509.4,2.37771613]
[1747567618440,4.48851279,2509.5,2509.4,2.37771613]
[1747567620440,5.15451279,2509.5,2509.4,2.37771613]
[1747567621740,5.15451279,2509.5,2509.4,3.56290423]
[1747567623742,3.15018003,2509.5,2509.4,7.91723558]
[1747567624039,3.81339456,2509.5,2509.4,7.91723558]
[1747567624243,0.75539456,2509.5,2509.4,7.91723558]
[1747567624626,0.75539456,2509.5,2509.4,6.73204748]
[1747567627640,0.09218003,2509.5,2509.4,8.31245565]
[1747567632943,0.09218003,2509.5,2509.4,6.73204748]
[1747567635047,0.09218003,2509.5,2509.4,11.73204748]
[1747567635638,0.66321453,2509.7,2509.4,11.73204748]
[1747567635846,0.66321453,2509.7,2509.6,3.2078]
[1747567636346,0.66321453,2509.7,2509.6,8.85924628]
[1747567637543,0.66321453,2509.7,2509.6,9.94436241]
[1747567639444,0.66321453,2509.7,2509.6,11.12933047]
[1747567639943,0.75539456,2509.7,2509.6,11.12933047]
[1747567640548,0.09218003,2509.7,2509.6,11.12933047]
[1747567642852,2.64311453,2510.0,2509.6,11.12933047]
[1747567643052,0.66321453,2510.0,2509.9,3.2078]
[1747567643245,0.66321453,2510.0,2509.9,18.7158]
[1747567643446,0.66321453,2510.0,2509.9,23.29010692]
[1747567643643,0.66321453,2510.0,2509.9,24.37522305]
[1747567643843,0.66321453,2510.0,2509.9,26.37162305]
[1747567644551,0.66321453,2510.0,2509.9,10.86362305]
[1747567644745,0.66321453,2510.0,2509.9,26.37062305]
[1747567645653,2.64501453,2510.1,2509.9,26.37062305]
[1747567645853,2.64501453,2510.1,2510.0,1.3403]
[1747567646150,2.64501453,2510.1,2510.0,5.9137574]
[1747567647051,2.64501453,2510.1,2510.0,4.5734574]
[1747567647351,2.64501453,2510.1,2510.0,13.41057353]
[1747567648258,5.70301453,2510.1,2510.0,13.41057353]
[1747567649548,5.0398,2510.1,2510.0,13.41057353]